bitfinex-derivatives/quotes_SOLF0:USTF0_20250311
["timestamp","ask_amount","ask_price","bid_price","bid_amount"]
[1741722082256,7.89161482,127.68,127.67,0.05681565]
[1741722083152,7.89161482,127.68,127.63,5.9749]
[1741722083153,4.67120122,127.68,127.63,5.9749]
[1741722083452,0.05821482,127.68,127.63,13.8111]
[1741722083653,7.835,127.66,127.63,13.8111]
[1741722083845,0.05821482,127.68,127.63,5.9749]
[1741722084254,0.05821482,127.68,127.64,0.05272922]
[1741722085557,0.05821482,127.68,127.64,7.88832922]
[1741722085756,0.05821482,127.68,127.64,0.05272922]
[1741722085952,258.4,127.7,127.65,3.0937]
[1741722086153,258.4,127.7,127.66,35.16]
[1741722086355,258.4,127.7,127.69,7.8328]
[1741722087461,0.05636841,127.71,127.69,7.8328]
[1741722087659,0.05636841,127.71,127.69,7.8325]
[1741722087860,0.05636841,127.71,127.68,0.05879825]
[1741722088061,7.88796841,127.71,127.68,0.05879825]
[1741722088358,7.88796841,127.71,127.68,7.89199825]
[1741722088561,0.05636841,127.71,127.68,0.05879825]
[1741722089750,0.05636841,127.71,127.69,7.8325]
[1741722090057,0.05636841,127.71,127.68,0.05879825]
[1741722090663,7.88796841,127.71,127.68,7.89189825]
[1741722090856,0.05636841,127.71,127.68,0.05879825]
[1741722091358,7.8322,127.7,127.68,0.05879825]
[1741722091560,0.05636841,127.71,127.68,0.05879825]
[1741722091754,28.6480701,127.71,127.68,0.05879825]
[1741722091955,6.57900485,127.7,127.68,0.05879825]
[1741722092161,28.6480701,127.71,127.68,0.05879825]
[1741722092460,1.95820779,127.7,127.68,0.05879825]
[1741722092658,7.8325,127.7,127.68,0.05879825]
[1741722092860,28.6480701,127.71,127.68,0.05879825]
[1741722093161,6.58116257,127.7,127.68,0.05879825]
[1741722093362,28.6480701,127.71,127.68,0.05879825]
[1741722093564,6.58269512,127.7,127.68,0.05879825]
[1741722093857,28.6480701,127.71,127.68,0.05879825]
[1741722094161,1.95818833,127.7,127.68,0.05879825]
[1741722095057,0.05636841,127.71,127.68,0.05879825]
[1741722095257,0.05636841,127.71,127.68,35.19879825]
[1741722096563,0.05636841,127.71,127.68,0.05879825]
[1741722096863,28.59170169,127.69,127.68,0.05879825]
[1741722097063,36.42450169,127.69,127.68,0.05879825]
[1741722097256,7.8328,127.69,127.68,0.05879825]
[1741722097457,0.05636841,127.71,127.68,0.05879825]
[1741722098055,9.79086144,127.7,127.68,0.05879825]
[1741722098256,1.95816144,127.7,127.68,0.05879825]
[1741722098455,0.05636841,127.71,127.68,0.05879825]
[1741722099459,4.64061145,127.7,127.68,0.05879825]
[1741722099959,0.05636841,127.71,127.68,35.19879825]
[1741722101365,7.88826841,127.71,127.68,43.03199825]
[1741722101565,0.05636841,127.71,127.68,35.19879825]
[1741722102168,6.60364624,127.7,127.68,35.19879825]
[1741722102360,6.60584565,127.69,127.68,0.05879825]
[1741722102556,12.48057738,127.69,127.68,0.05879825]
[1741722102969,14.43890248,127.69,127.68,0.05879825]
[1741722103569,14.4388151,127.69,127.68,0.05879825]
[1741722106267,7.8365,127.64,127.62,35.12]
[1741722106470,28.59170169,127.68,127.62,35.12]
[1741722106769,4.6571814,127.67,127.62,35.12]
[1741722106967,7.8358,127.65,127.62,42.9571]
[1741722107168,28.59170169,127.71,127.62,35.12]
[1741722107371,0.05468136,127.65,127.63,3.1761]
[1741722107558,7.8334,127.69,127.63,3.1761]
[1741722107765,4.65710331,127.68,127.64,3.1043]
[1741722108065,4.65710331,127.67,127.66,7.8346]
[1741722108264,71.78780521,127.74,127.66,35.12]
[1741722108468,6.61498405,127.73,127.67,3.158]
[1741722108666,0.05141874,127.71,127.69,0.05273751]
[1741722108875,6.61498405,127.7,127.69,0.05273751]
[1741722109074,6.61498405,127.7,127.69,7.88553751]
[1741722109264,4.65685933,127.7,127.69,0.05273751]
[1741722109464,1.68678405,127.7,127.69,0.05273751]
[1741722109666,1.68678405,127.7,127.69,7.88553751]
[1741722109964,0.05141874,127.71,127.69,7.88553751]
[1741722109965,0.05141874,127.71,127.69,0.05273751]
[1741722110167,43.19610352,127.74,127.7,35.12]
[1741722110669,43.19610352,127.74,127.69,0.05273751]
[1741722110868,28.59170169,127.75,127.69,0.05273751]
[1741722111269,0.05508598,127.73,127.69,0.05273751]
[1741722111466,7.8314,127.72,127.69,7.88513751]
[1741722111873,7.8311,127.72,127.69,0.05273751]
[1741722112375,0.05508598,127.73,127.69,0.05273751]
[1741722113563,7.8314,127.72,127.69,0.05273751]
[1741722113875,0.05508598,127.73,127.69,0.05273751]
[1741722114369,7.831,127.72,127.69,7.88513751]
[1741722114574,0.05508598,127.73,127.69,0.05273751]
[1741722114974,7.88568598,127.73,127.7,7.8321]
[1741722115672,7.88568598,127.73,127.71,7.8316]
[1741722115874,7.88568598,127.73,127.69,3.21013751]
[1741722116176,0.05508598,127.73,127.69,3.21013751]
[1741722116778,7.8322,127.7,127.69,0.05273751]
[1741722118173,7.8359,127.64,127.63,6.1734]
[1741722118378,28.59170169,127.68,127.61,35.1]
[1741722118877,7.8356,127.65,127.62,7.837]
[1741722119076,28.59170169,127.68,127.61,35.1]
[1741722119378,0.05091233,127.65,127.62,0.05032042]
[1741722120374,28.59170169,127.71,127.62,0.05032042]
[1741722120580,7.8338,127.68,127.64,7.8357]
[1741722120785,2.191,127.72,127.6,105.74869083]
[1741722120786,2.191,127.72,127.65,35.1]
[1741722120973,74.89200521,127.73,127.65,35.1]
[1741722121284,28.59170169,127.67,127.62,35.1]
[1741722121582,7.8346,127.67,127.64,7.8356]
[1741722121782,0.05105606,127.66,127.63,0.05003956]
[1741722122180,5.606e-05,127.66,127.63,0.05003956]
[1741722122383,43.19610352,127.73,127.64,28.59170169]
[1741722122587,43.19610352,127.73,127.65,2.9575]
[1741722122788,7.8321,127.71,127.66,35.1]
[1741722122979,43.19610352,127.73,127.66,35.1]
[1741722123489,0.06009224,127.71,127.68,0.05825092]
[1741722123682,0.06009224,127.71,127.69,7.8327]
[1741722123989,0.06009224,127.71,127.7,35.1]
[1741722124486,0.06009224,127.71,127.7,42.9322]
[1741722124991,0.06009224,127.71,127.7,35.1]
[1741722125583,0.06009224,127.71,127.68,35.15825092]
[1741722126680,0.06009224,127.71,127.69,7.8325]
[1741722126883,0.06009224,127.71,127.68,35.15825092]
[1741722127078,7.8293,127.75,127.68,35.15825092]
[1741722127283,7.8293,127.75,127.68,35.1]
[1741722127490,258.5,127.76,127.66,3.0483]
[1741722127689,28.59170169,127.75,127.67,35.1]
[1741722128184,0.05781042,127.72,127.7,0.04981597]
[1741722129289,7.8316,127.71,127.7,0.04981597]
[1741722129490,28.64951211,127.72,127.66,35.08]
[1741722129889,28.64951211,127.72,127.63,35.08]
[1741722130090,66.83730169,127.74,127.63,35.08]
[1741722130091,28.59170169,127.69,127.63,35.08]
[1741722130585,28.59170169,127.69,127.62,35.08]
[1741722130788,0.0593752,127.67,127.65,0.049367]
[1741722131383,0.0593752,127.67,127.66,35.08]
[1741722131993,74.95340521,127.74,127.66,35.08]
[1741722132389,74.95340521,127.74,127.66,42.9143]
[1741722132390,7.8317,127.71,127.66,42.9143]
[1741722132591,7.8317,127.71,127.66,35.08]
[1741722132991,74.95340521,127.74,127.67,7.834]
[1741722133186,0.05174966,127.7,127.67,0.05196656]
[1741722135699,0.05174966,127.7,127.69,7.8328]
[1741722136400,258.5,127.76,127.68,6.5251]
[1741722136595,10.79902588,127.78,127.71,17.8757879]
[1741722136802,43.19610352,127.78,127.73,17.8757879]
[1741722136997,43.19610352,127.78,127.74,3.2841]
[1741722137297,43.19610352,127.78,127.74,6.457]
[1741722137495,0.05400811,127.77,127.75,0.05367537]
[1741722138101,7.8285,127.76,127.75,0.05367537]
[1741722139796,0.05400811,127.77,127.75,0.05367537]
[1741722140003,7.8285,127.76,127.75,0.05367537]
[1741722140198,0.05400811,127.77,127.75,0.05367537]
[1741722140602,7.8285,127.76,127.75,0.05367537]
[1741722141098,7.8285,127.76,127.75,7.537e-05]
[1741722141293,0.05400811,127.77,127.75,7.537e-05]
[1741722141799,7.8285,127.76,127.75,7.537e-05]
[1741722141992,0.05400811,127.77,127.75,7.537e-05]
[1741722142199,7.88240811,127.77,127.75,7.537e-05]
[1741722142706,0.05400811,127.77,127.75,7.537e-05]
[1741722143901,7.8285,127.76,127.75,7.537e-05]
[1741722144905,7.8316,127.71,127.7,3.1711]
[1741722145100,28.59686005,127.77,127.7,3.1711]
[1741722145500,28.59686005,127.77,127.71,7.8311]
[1741722145700,2.1634,127.78,127.71,7.8311]
[1741722145901,35.06,127.79,127.7,3.1711]
[1741722146200,0.05449898,127.76,127.73,0.04957214]
[1741722146400,0.05449898,127.76,127.74,35.06]
[1741722146609,0.05449898,127.76,127.75,7.8291]
[1741722146796,324.28026005,127.82,127.74,35.06]
[1741722147001,28.59686005,127.79,127.74,35.06]
[1741722147600,7.83,127.74,127.71,42.8912]
[1741722147805,28.59686005,127.79,127.71,35.06]
[1741722148003,0.05821695,127.74,127.71,35.11143085]
[1741722148203,0.05821695,127.74,127.71,35.11234582]
[1741722151107,28.59686005,127.79,127.71,35.11234582]
[1741722151307,28.59686005,127.79,127.71,35.06]
[1741722151308,7.8276,127.78,127.71,35.06]
[1741722151608,324.26026005,127.82,127.71,35.06]
[1741722151908,28.59686005,127.79,127.71,35.06]
[1741722152407,0.02364853,127.76,127.74,0.05149845]
[1741722152710,7.8291,127.75,127.74,0.05149845]
[1741722153610,28.62050858,127.76,127.66,35.04]
[1741722153805,35.04,127.78,127.66,3.1343]
[1741722153806,28.59686005,127.73,127.66,3.1343]
[1741722154008,7.8335,127.68,127.66,3.1343]
[1741722154205,35.04,127.73,127.66,3.1343]
[1741722154608,7.8338,127.68,127.66,3.1343]
[1741722154910,7.8338,127.68,127.66,3.19385914]
[1741722155106,7.88694265,127.68,127.66,3.19385914]
[1741722155308,0.05314265,127.68,127.66,3.19385914]
[1741722155706,0.05314265,127.68,127.66,11.02815914]
[1741722156512,0.05314265,127.68,127.67,7.8341]
[1741722156914,0.05314265,127.68,127.67,42.8741]
[1741722157412,0.05314265,127.68,127.67,35.04]
[1741722157909,0.05314265,127.68,127.66,3.19385914]
[1741722158113,0.05314265,127.68,127.67,7.8341]
[1741722158510,7.8319,127.71,127.66,3.19385914]
[1741722158908,7.8319,127.71,127.68,7.8333]
[1741722159513,7.85390433,127.71,127.68,7.8333]
[1741722159709,0.02200433,127.71,127.69,7.8323]
[1741722160215,0.02200433,127.71,127.69,7.88795079]
[1741722160418,0.02200433,127.71,127.69,0.05565079]
[1741722161218,0.02200433,127.71,127.7,7.8322]
[1741722162928,20.05122141,127.77,127.69,0.05565079]
[1741722163122,17.88642141,127.78,127.69,21.1006722]
[1741722163426,17.88642141,127.78,127.69,21.04502141]
[1741722163730,7.83,127.74,127.71,7.8313]
[1741722163917,7.83,127.74,127.72,35.04]
[1741722164117,17.88642141,127.78,127.72,35.04]
[1741722164330,17.88642141,127.78,127.72,42.8707]
[1741722164517,17.88642141,127.78,127.72,35.04]
[1741722164722,7.8296,127.75,127.74,0.0573433]
[1741722165123,17.88642141,127.78,127.74,0.0573433]
[1741722165323,34.09292264,127.82,127.74,0.0573433]
[1741722165622,34.09292264,127.82,127.74,35.04]
[1741722165623,46.10727038,127.82,127.74,35.04]
[1741722165922,7.8273,127.78,127.77,0.04931012]
[1741722166318,25.71372141,127.78,127.77,0.04931012]
[1741722166725,17.88642141,127.78,127.77,0.04931012]
[1741722167119,25.71372141,127.78,127.77,0.04931012]
[1741722167527,17.88642141,127.78,127.77,0.04931012]
[1741722167725,7.8273,127.78,127.77,0.04931012]
[1741722168325,17.88642141,127.8,127.77,0.04931012]
[1741722169334,7.8273,127.78,127.77,0.04931012]
[1741722169726,17.88642141,127.8,127.77,0.04931012]
[1741722169925,7.8267,127.79,127.77,0.04931012]
[1741722170230,17.88642141,127.8,127.77,0.04931012]
[1741722170425,17.88642141,127.78,127.77,0.04931012]
[1741722170626,25.71372141,127.78,127.77,0.04931012]
[1741722171827,17.88642141,127.8,127.77,0.04931012]
[1741722172024,17.88642141,127.82,127.77,0.04931012]
[1741722172223,17.88642141,127.84,127.77,0.04931012]
[1741722172424,7.8247,127.83,127.77,0.04931012]
[1741722172629,7.8247,127.83,127.8,7.8258]
[1741722172827,7.8247,127.83,127.78,35.02]
[1741722173132,10.79902588,127.85,127.82,7.8246]
[1741722173430,10.79902588,127.85,127.78,35.02]
[1741722173625,7.8243,127.83,127.82,0.04958114]
[1741722173931,10.79902588,127.85,127.82,0.04958114]
[1741722175029,7.8242,127.83,127.82,0.04958114]
[1741722175832,7.8242,127.83,127.82,8.114e-05]
[1741722177128,7.8267,127.79,127.78,35.02]
[1741722177424,17.88642141,127.82,127.78,35.02]
[1741722177831,7.8267,127.79,127.78,35.02]
[1741722178130,7.8267,127.79,127.76,13.982]
[1741722178330,7.8267,127.79,127.77,0.05923786]
[1741722179033,7.8273,127.78,127.77,0.05923786]
[1741722179228,25.71372141,127.78,127.77,0.05923786]
[1741722179426,7.8273,127.78,127.77,0.05923786]
[1741722179630,25.71372141,127.78,127.77,0.05923786]
[1741722180431,25.71372141,127.78,127.77,3.786e-05]
[1741722180831,7.8301,127.74,127.72,3.153]
[1741722181029,7.8301,127.74,127.71,42.8313]
[1741722181628,7.8301,127.74,127.71,35.0]
[1741722181836,17.88642141,127.76,127.7,38.0058]
[1741722182032,0.0598938,127.74,127.71,0.05744992]
[1741722182836,17.88642141,127.72,127.67,35.0]
[1741722183334,17.88642141,127.72,127.64,16.8239]
[1741722183540,17.88642141,127.7,127.64,8.9883]
[1741722183737,17.88642141,127.7,127.64,5.8276]
[1741722183932,17.88642141,127.7,127.64,2.8747]
[1741722184137,0.05142266,127.68,127.66,0.05066852]
[1741722184340,7.8341,127.67,127.66,0.05066852]
[1741722184644,0.05142266,127.68,127.66,0.05066852]
[1741722185141,7.88502266,127.68,127.66,0.05066852]
[1741722185441,0.05142266,127.68,127.66,0.05066852]
[1741722186840,0.05142266,127.68,127.66,7.88496852]
[1741722187244,0.05142266,127.68,127.66,0.05066852]
[1741722188043,7.88522266,127.68,127.66,0.05066852]
[1741722188437,0.05142266,127.68,127.66,0.05066852]
[1741722188637,17.93784407,127.68,127.66,0.05066852]
[1741722189040,7.8341,127.67,127.66,0.05066852]
[1741722189437,7.8357,127.65,127.61,45.9982]
[1741722189642,17.88642141,127.66,127.61,38.1607]
[1741722190037,17.88642141,127.68,127.61,38.1607]
[1741722190638,0.05230091,127.66,127.63,0.05999983]
[1741722191142,0.05230091,127.66,127.64,7.8355]
[1741722191439,0.05230091,127.66,127.63,0.05999983]
[1741722192037,0.05230091,127.66,127.64,7.8355]
[1741722192243,0.05230091,127.66,127.63,0.05999983]
[1741722193836,258.38,127.7,127.63,3.06169983]
[1741722194641,276.26642141,127.7,127.63,3.06169983]
[1741722194844,17.88642141,127.68,127.63,3.06169983]
[1741722195037,17.94181574,127.68,127.63,3.06169983]
[1741722195538,7.8357,127.65,127.63,0.05999983]
[1741722195737,17.88642141,127.68,127.63,0.05999983]
[1741722195937,7.89492732,127.65,127.63,0.05999983]
[1741722196143,0.05932732,127.65,127.63,0.05999983]
[1741722196540,7.8359,127.64,127.63,0.05999983]
[1741722196941,0.05932732,127.65,127.63,0.05999983]
[1741722197837,0.05932732,127.65,127.63,7.89609983]
[1741722198444,0.05932732,127.65,127.63,0.05999983]
[1741722199444,7.89462732,127.65,127.63,0.05999983]
[1741722199640,0.05932732,127.65,127.63,0.05999983]
[1741722201835,0.05932732,127.65,127.63,7.89619983]
[1741722202648,0.05932732,127.65,127.63,0.05999983]
[1741722204041,0.05932732,127.65,127.64,7.8359]
[1741722204250,0.05932732,127.65,127.63,0.05999983]
[1741722204747,7.8359,127.64,127.63,0.05999983]
[1741722205442,0.05932732,127.65,127.63,0.05999983]
[1741722206348,7.8359,127.64,127.63,0.05999983]
[1741722207240,7.89492732,127.65,127.63,0.05999983]
[1741722207446,0.05932732,127.65,127.63,0.05999983]
[1741722207845,7.89512732,127.65,127.63,0.05999983]
[1741722208043,0.05932732,127.65,127.63,0.05999983]
[1741722208442,7.89482732,127.65,127.63,0.05999983]
[1741722208637,0.05932732,127.65,127.63,0.05999983]
[1741722209743,7.8359,127.64,127.63,0.05999983]
[1741722210047,0.05932732,127.65,127.63,0.05999983]
[1741722210242,7.89482732,127.65,127.63,0.05999983]
[1741722210444,0.05932732,127.65,127.63,0.05999983]
[1741722211648,7.8359,127.64,127.63,0.05999983]
[1741722212743,7.89492732,127.65,127.63,0.05999983]
[1741722213149,0.05932732,127.65,127.63,0.05999983]
[1741722213347,0.05932732,127.65,127.63,7.89619983]
[1741722214450,0.05932732,127.65,127.64,7.8359]
[1741722215045,0.05932732,127.65,127.63,7.89619983]
[1741722215249,0.05932732,127.65,127.63,0.05999983]
[1741722216348,7.8359,127.64,127.63,0.05999983]
[1741722216743,0.05932732,127.65,127.63,0.05999983]
[1741722216943,7.89492732,127.65,127.63,0.05999983]
[1741722217145,0.05932732,127.65,127.63,0.05999983]
[1741722217453,7.8359,127.64,127.63,0.05999983]
[1741722218348,7.89492732,127.65,127.63,0.05999983]
[1741722218550,0.05932732,127.65,127.63,0.05999983]
[1741722219447,0.05932732,127.65,127.63,7.89609983]
[1741722219752,0.05932732,127.65,127.63,0.05999983]
[1741722219949,7.8359,127.64,127.63,0.05999983]
[1741722220452,7.89492732,127.65,127.63,0.05999983]
[1741722220753,0.05932732,127.65,127.63,0.05999983]
[1741722222456,0.05932732,127.65,127.63,7.89609983]
[1741722222651,0.05932732,127.65,127.63,0.05999983]
[1741722222850,258.38,127.7,127.64,34.98]
[1741722223046,258.38,127.7,127.65,7.835]
[1741722223251,258.38,127.7,127.64,34.98]
[1741722223553,7.8343,127.67,127.64,42.8156]
[1741722224052,17.94213355,127.67,127.64,0.05821]
[1741722224248,0.05571214,127.67,127.64,0.05821]
[1741722224653,7.89011214,127.67,127.64,7.89381]
[1741722225055,7.8351,127.66,127.64,0.05821]
[1741722225356,0.05571214,127.67,127.64,0.05821]
[1741722225550,7.8353,127.65,127.64,0.05821]
[1741722229359,7.835,127.66,127.64,0.05821]
[1741722230650,0.05571214,127.67,127.64,0.05821]
[1741722231159,7.8347,127.66,127.64,0.05821]
[1741722231358,0.05571214,127.67,127.64,0.05821]
[1741722231755,0.05571214,127.67,127.65,7.835]
[1741722232448,43.19610352,127.72,127.64,35.03821]
[1741722232651,43.19610352,127.72,127.65,20.76207821]
[1741722232857,43.19610352,127.72,127.66,3.0478]
[1741722233059,43.19610352,127.72,127.7,7.8318]
[1741722233261,43.19610352,127.72,127.7,42.8118]
[1741722233557,43.19610352,127.72,127.7,34.98]
[1741722233753,43.24570059,127.72,127.7,35.02970372]
[1741722233956,17.89217821,127.71,127.63,34.98]
[1741722234262,17.89217821,127.69,127.63,34.98]
[1741722234465,7.8356,127.65,127.63,34.98]
[1741722235062,7.8359,127.64,127.63,34.98]
[1741722235266,7.8359,127.64,127.63,35.03688556]
[1741722235763,0.05712528,127.65,127.63,35.03688556]
[1741722236164,0.05712528,127.65,127.64,7.8359]
[1741722236557,0.05712528,127.65,127.63,35.03688556]
[1741722236960,0.05712528,127.65,127.64,7.8359]
[1741722237157,0.05712528,127.65,127.63,35.03688556]
[1741722237566,0.05712528,127.65,127.64,7.8359]
[1741722239272,20.83487821,127.71,127.63,35.03688556]
[1741722239466,20.83487821,127.71,127.63,34.98]
[1741722239664,17.89217821,127.69,127.63,34.98]
[1741722240469,0.04217551,127.67,127.65,0.05814349]
[1741722242862,7.87677551,127.67,127.65,0.05814349]
[1741722243265,0.04217551,127.67,127.65,0.05814349]
[1741722245361,0.04217551,127.67,127.65,7.89304349]
[1741722246665,258.48,127.72,127.65,0.05814349]
[1741722247667,7.8319,127.71,127.68,7.8332]
[1741722247864,258.48,127.72,127.68,34.96]
[1741722248065,10.79902588,127.75,127.68,52.90301062]
[1741722248467,7.8301,127.74,127.71,7.8313]
[1741722248667,10.79902588,127.75,127.68,52.85217821]
[1741722248970,10.79902588,127.75,127.7,0.05749449]
[1741722249172,10.79902588,127.75,127.7,17.9496727]
[1741722249468,10.79902588,127.75,127.72,7.8309]
[1741722249666,10.79902588,127.75,127.73,34.96]
[1741722250176,18.62852588,127.75,127.73,35.0140087]
[1741722250673,7.8295,127.75,127.73,35.0140087]
[1741722251068,258.48,127.79,127.73,35.0140087]
[1741722251668,258.48,127.79,127.73,0.0540087]
[1741722251873,17.89217821,127.78,127.73,0.0540087]
[1741722252274,17.89217821,127.78,127.73,10.9858087]
[1741722252670,17.89217821,127.78,127.73,3.1558087]
[1741722252872,7.8282,127.77,127.73,10.9859087]
[1741722253274,17.89217821,127.78,127.73,3.1558087]
[1741722255372,7.8282,127.77,127.74,7.8294]
[1741722255773,17.89217821,127.78,127.73,3.1558087]
[1741722255975,7.8286,127.76,127.73,3.1558087]
[1741722256469,7.8282,127.77,127.74,7.8296]
[1741722256679,17.89217821,127.78,127.73,3.1558087]
[1741722257076,7.829,127.76,127.73,10.9858087]
[1741722257277,17.89217821,127.78,127.73,10.9858087]
[1741722257479,17.89217821,127.76,127.73,0.0540087]
[1741722257772,7.8298,127.74,127.73,0.0540087]
[1741722261869,17.89217821,127.75,127.73,8.7e-06]
[1741722262075,17.89217821,127.75,127.67,3.0793]
[1741722262380,7.8334,127.68,127.67,3.0793]
[1741722262777,17.89217821,127.72,127.67,3.0793]
[1741722262979,7.8334,127.68,127.67,3.0793]
[1741722263177,7.8334,127.68,127.66,34.92]
[1741722263378,7.8334,127.68,127.66,34.97649886]
[1741722263579,7.8874087,127.68,127.66,34.97649886]
[1741722263977,0.0540087,127.68,127.66,34.97649886]
[1741722264284,7.8341,127.67,127.66,0.05649886]
[1741722264585,7.8877087,127.68,127.66,0.05649886]
[1741722264882,0.0540087,127.68,127.66,0.05649886]
[1741722265588,7.8877087,127.68,127.66,0.05649886]
[1741722266584,0.0540087,127.68,127.66,7.89109886]
[1741722267187,0.0540087,127.68,127.67,7.8341]
[1741722267387,55.93767821,127.74,127.66,3.03869886]
[1741722267582,21.01767821,127.74,127.66,2.9822]
[1741722267987,17.89217821,127.74,127.66,2.9822]
[1741722268484,17.89217821,127.74,127.69,0.05820927]
[1741722268685,7.8314,127.72,127.69,34.97820927]
[1741722268982,17.89217821,127.74,127.7,7.832]
[1741722269181,17.89217821,127.76,127.69,34.97820927]
[1741722269377,17.89217821,127.76,127.69,34.92]
[1741722269585,7.8308,127.73,127.71,0.04995812]
[1741722269783,17.89217821,127.76,127.71,0.04995812]
[1741722270184,7.831,127.72,127.71,0.04995812]
[1741722271087,25.72317821,127.72,127.71,5.812e-05]
[1741722273886,7.8341,127.67,127.66,34.92]
[1741722274191,17.89217821,127.72,127.66,34.92]
[1741722274192,17.89217821,127.7,127.66,34.92]
[1741722274690,7.8341,127.67,127.66,34.92]
[1741722275081,0.04984093,127.68,127.66,34.92]
[1741722275492,7.88334093,127.68,127.66,34.92]
[1741722276084,7.88334093,127.68,127.65,0.04970263]
[1741722276483,0.04984093,127.68,127.65,0.04970263]
[1741722276686,0.04984093,127.68,127.65,7.88460263]
[1741722277095,0.04984093,127.68,127.65,0.04970263]
[1741722277891,0.04984093,127.68,127.66,7.8344]
[1741722278689,0.04984093,127.68,127.67,7.8341]
[1741722279388,17.89217821,127.74,127.69,7.8323]
[1741722279789,7.8313,127.72,127.69,7.8323]
[1741722280192,17.89217821,127.74,127.68,42.7332]
[1741722280489,17.89217821,127.74,127.7,0.0583671]
[1741722281096,17.89217821,127.72,127.7,0.0583671]
[1741722281595,7.8316,127.71,127.7,0.0583671]
[1741722285084,17.89217821,127.74,127.7,0.0583671]
[1741722285291,7.8314,127.72,127.7,0.0583671]
[1741722285492,17.89217821,127.74,127.7,0.0583671]
[1741722285894,17.89217821,127.72,127.7,0.0583671]
[1741722286796,7.8316,127.71,127.7,0.0583671]
[1741722294598,17.89217821,127.74,127.7,0.0583671]
[1741722295598,17.89217821,127.72,127.7,0.0583671]
[1741722296202,7.8316,127.71,127.7,6.71e-05]
[1741722300408,15.6633,127.71,127.63,2.9881]
[1741722300608,17.89217821,127.7,127.63,2.9881]
[1741722301010,17.89217821,127.68,127.63,2.9881]
[1741722301210,17.89217821,127.68,127.62,2.8566]
[1741722301509,7.8355,127.65,127.64,0.0583957]
[1741722301710,0.056464,127.66,127.64,0.0583957]
[1741722302612,0.056464,127.66,127.64,7.8942957]
[1741722302802,0.056464,127.66,127.64,0.0583957]
[1741722304110,17.89217821,127.72,127.64,0.0583957]
[1741722304412,17.89217821,127.73,127.63,17.89217821]
[1741722305208,17.89217821,127.73,127.67,0.05497277]
[1741722305209,17.89217821,127.71,127.67,0.05497277]
[1741722305415,7.8333,127.69,127.67,0.05497277]
[1741722305916,7.8334,127.68,127.67,0.05497277]
[1741722306308,7.8331,127.69,127.67,0.05497277]
[1741722306509,17.89217821,127.71,127.67,0.05497277]
[1741722307018,7.8334,127.68,127.67,0.05497277]
[1741722308526,7.833,127.69,127.67,0.05497277]
[1741722308825,52.75217821,127.73,127.67,0.05497277]
[1741722309026,17.89217821,127.71,127.67,0.05497277]
[1741722309528,7.8334,127.68,127.67,0.05497277]
[1741722312026,52.75217821,127.69,127.62,2.8566]
[1741722312222,17.89217821,127.66,127.6,3.0915]
[1741722312528,7.8363,127.64,127.6,10.9295]
[1741722312728,17.89217821,127.68,127.6,3.0915]
[1741722313331,0.05699306,127.65,127.63,0.0515454]
[1741722313729,7.8363,127.64,127.63,0.0515454]
[1741722314029,0.05699306,127.65,127.63,0.0515454]
[1741722314822,7.8359,127.64,127.63,0.0515454]
[1741722317829,7.89249306,127.65,127.63,0.0515454]
[1741722318026,0.05699306,127.65,127.63,0.0515454]
[1741722318228,11.51358314,127.65,127.63,0.0515454]
[1741722318725,0.05699306,127.65,127.63,34.9115454]
[1741722319431,11.51358314,127.65,127.63,34.9115454]
[1741722320032,7.8359,127.64,127.63,34.9115454]
[1741722320533,7.8359,127.64,127.63,0.0515454]
[1741722320933,0.05699306,127.65,127.63,0.0515454]
[1741722321336,11.45659008,127.67,127.63,0.0515454]
[1741722321633,11.45659008,127.69,127.64,46.31659008]
[1741722321931,19.28979008,127.69,127.64,46.31659008]
[1741722322132,11.45659008,127.69,127.64,46.31659008]
[1741722322634,11.45659008,127.71,127.66,11.45659008]
[1741722323031,11.45659008,127.71,127.67,0.05398419]
[1741722323230,11.45659008,127.71,127.68,34.84]
[1741722324333,17.88667937,127.72,127.68,34.84]
[1741722324732,17.88667937,127.72,127.69,0.05038654]
[1741722324931,7.8321,127.71,127.69,0.05038654]
[1741722325332,17.88667937,127.74,127.69,0.05038654]
[1741722325532,17.88667937,127.72,127.69,0.05038654]
[1741722325928,7.8316,127.71,127.69,0.05038654]
[1741722326134,17.88667937,127.7,127.69,0.05038654]
[1741722326839,25.71887937,127.7,127.69,0.05038654]
[1741722327432,25.71887937,127.7,127.69,8.654e-05]
[1741722328240,7.8319,127.71,127.69,8.654e-05]